bitfinex/quotes_SOLUSD_20251124
["timestamp","ask_amount","ask_price","bid_price","bid_amount"]
[1764022528671,8.80994492,139.41,139.4,0.2]
[1764022528980,12.00994492,139.41,139.4,0.2]
[1764022529302,12.68994492,139.41,139.4,0.2]
[1764022530288,19.86303149,139.41,139.4,0.2]
[1764022533983,16.66303149,139.41,139.4,0.2]
[1764022534180,12.68994492,139.41,139.4,0.2]
[1764022534386,9.48994492,139.41,139.4,0.2]
[1764022534562,19.86303149,139.41,139.4,0.2]
[1764022535292,12.00994492,139.41,139.4,0.2]
[1764022535489,8.80994492,139.41,139.4,0.2]
[1764022535691,8.80994492,139.41,139.4,2.19999999]
[1764022535692,3.2,139.41,139.4,2.19999999]
[1764022535996,3.88,139.41,139.4,2.19999999]
[1764022536499,11.05308657,139.41,139.4,2.19999999]
[1764022536697,3.88,139.41,139.4,2.19999999]
[1764022537778,3.2,139.41,139.4,2.19999999]
[1764022537983,10.37308657,139.41,139.4,2.19999999]
[1764022538682,19.86303149,139.41,139.4,0.2]
[1764022556305,18.30886399,139.36,139.32,1e-08]
[1764022556508,25.11880892,139.33,139.31,1e-08]
[1764022556811,23.48813027,139.29,139.28,0.2]
[1764022557130,32.29807519,139.29,139.28,0.86]
[1764022557286,35.49807519,139.29,139.28,0.86]
[1764022558011,3.2,139.29,139.28,0.86]
[1764022559207,10.37926627,139.29,139.28,0.86]
[1764022559403,3.2,139.29,139.28,0.86]
[1764022563093,8.80994492,139.37,139.28,8.03977487]
[1764022563289,7.17669011,139.34,139.29,7.83896225]
[1764022563606,3.2,139.33,139.29,7.83896225]
[1764022563806,3.2,139.33,139.3,0.66]
[1764022564395,10.37726757,139.33,139.3,0.66]
[1764022564988,3.2,139.33,139.3,7.83861558]
[1764022565596,3.2,139.33,139.31,0.66]
[1764022570387,3.2,139.32,139.31,0.66]
[1764022575121,10.37772035,139.32,139.31,0.66]
[1764022575917,11.08772035,139.32,139.28,63.36]
[1764022576308,29.03202124,139.32,139.29,0.66]
[1764022577127,28.32202124,139.32,139.29,0.66]
[1764022577826,29.03202124,139.32,139.29,0.66]
[1764022580328,29.03202124,139.32,139.29,63.16]
[1764022581329,28.32202124,139.32,139.29,62.5]
[1764022581527,9.51994492,139.31,139.28,62.7]
[1764022581825,9.51994492,139.31,139.28,0.2]
[1764022582126,8.80994492,139.29,139.28,0.2]
[1764022582423,12.00994492,139.29,139.28,0.2]
[1764022582627,12.70994492,139.29,139.28,0.2]
[1764022582930,12.70994492,139.29,139.28,0.03492102]
[1764022583107,19.88921119,139.29,139.28,0.03492102]
[1764022584743,25.11880892,139.27,139.26,1e-08]
[1764022584934,25.11880892,139.27,139.2,0.7]
[1764022584935,8.80994492,139.26,139.2,0.7]
[1764022585226,15.99224234,139.24,139.2,0.7]
[1764022585727,3.2,139.23,139.2,0.7]
[1764022585904,3.2,139.23,139.2,63.2]
[1764022586107,3.2,139.23,139.21,0.7]
[1764022586718,3.2,139.22,139.21,0.7]
[1764022588428,7.1815329,139.25,139.21,7.88339199]
[1764022588607,3.2,139.24,139.21,7.88339199]
[1764022588806,3.2,139.24,139.22,0.7]
[1764022589030,7.1815329,139.25,139.22,0.7]
[1764022589231,3.2,139.24,139.22,63.2]
[1764022589714,3.2,139.24,139.23,0.7]
[1764022590139,7.18050137,139.27,139.23,0.7]
[1764022590438,3.2,139.26,139.23,63.2]
[1764022590618,3.2,139.25,139.23,63.2]
[1764022590816,18.64864517,139.29,139.24,0.7]
[1764022591018,3.2,139.28,139.24,0.7]
[1764022591218,10.37991258,139.28,139.24,0.7]
[1764022591429,11.07991258,139.28,139.24,0.7]
[1764022591631,10.37991258,139.28,139.24,7.88180258]
[1764022591805,10.37991258,139.28,139.24,0.7]
[1764022592007,10.37991258,139.28,139.25,0.7]
[1764022592631,3.2,139.27,139.25,0.7]
[1764022593342,3.2,139.27,139.26,7.18081286]
[1764022593825,3.2,139.27,139.26,7.88081286]
[1764022594213,3.2,139.27,139.26,0.7]
[1764022596523,7.17873451,139.31,139.26,7.8805399]
[1764022596726,3.2,139.3,139.26,7.8805399]
[1764022596916,3.2,139.3,139.27,0.7]
[1764022597529,10.37893472,139.3,139.27,0.7]
[1764022602123,9.50994492,139.29,139.24,63.2]
[1764022602323,9.50994492,139.29,139.24,0.7]
[1764022602522,0.7,139.28,139.25,0.7]
[1764022602726,3.2,139.27,139.25,0.7]
[1764022603820,7.88081286,139.26,139.23,62.5]
[1764022604026,25.83284503,139.26,139.23,0.7]
[1764022604228,0.7,139.25,139.22,0.7]
[1764022604527,3.2,139.24,139.22,0.7]
[1764022605329,10.3823328,139.24,139.22,0.7]
[1764022606056,29.03694354,139.24,139.19,7.38421846]
[1764022606348,3.2,139.23,139.21,0.7]
[1764022606523,0.7,139.28,139.21,0.7]
[1764022606725,3.2,139.27,139.22,16.308864]
[1764022607232,3.2,139.27,139.23,0.7]
[1764022607441,10.38051213,139.27,139.23,7.88212797]
[1764022608024,10.38051213,139.27,139.24,0.7]
[1764022610242,3.2,139.27,139.24,7.88176236]
[1764022610622,3.2,139.27,139.25,0.72]
[1764022613622,7.18010677,139.28,139.25,0.72]
[1764022613832,3.2,139.27,139.25,0.72]
[1764022617851,10.38031109,139.27,139.25,0.72]
[1764022618638,11.04031109,139.27,139.24,62.5]
[1764022618827,11.04031109,139.27,139.24,63.2]
[1764022620345,10.38031109,139.27,139.25,0.7]
[1764022620746,7.83995254,139.28,139.25,0.7]
[1764022621031,3.2,139.27,139.25,0.7]
[1764022622232,10.3804306,139.27,139.25,0.7]
[1764022623651,3.2,139.27,139.25,7.88126952]
[1764022624156,3.2,139.27,139.26,0.7]
[1764022624935,3.2,139.27,139.26,63.2]
[1764022625958,3.2,139.27,139.26,70.38081286]
[1764022630870,3.2,139.27,139.23,63.2]
[1764022630871,3.86,139.27,139.23,63.2]
[1764022631052,0.66,139.26,139.23,62.5]
[1764022631565,0.66,139.26,139.23,63.2]
[1764022632048,0.66,139.26,139.23,70.38235957]
[1764022632373,7.84106485,139.26,139.23,62.5]
[1764022633170,0.66,139.25,139.23,62.5]
[1764022633337,14.64622501,139.27,139.23,62.0]
[1764022633668,3.2,139.24,139.23,0.7]
[1764022634163,3.2,139.24,139.21,85.4922153]
[1764022634460,3.2,139.24,139.23,0.7]
[1764022635864,17.94867685,139.29,139.23,69.8821335]
[1764022636073,3.2,139.28,139.24,0.7]
[1764022637437,10.38006161,139.28,139.24,7.88168658]
[1764022637970,10.38006161,139.28,139.25,0.7]
[1764022640242,28.98951594,139.28,139.24,62.0]
[1764022640659,28.98951594,139.28,139.25,0.7]
[1764022641265,10.37988376,139.28,139.25,0.7]
[1764022641636,3.2,139.28,139.25,0.7]
[1764022641843,10.37980654,139.28,139.25,0.7]
[1764022643274,7.17980654,139.28,139.25,0.7]
[1764022643652,3.2,139.27,139.25,0.7]
[1764022644167,10.38041167,139.27,139.25,0.7]
[1764022644576,11.07041167,139.27,139.24,62.0]
[1764022644953,29.02115483,139.27,139.24,62.0]
[1764022645477,29.02115483,139.27,139.24,62.65]
[1764022649803,29.02115483,139.27,139.24,62.0]
[1764022653369,29.02115483,139.27,139.24,60.15]
[1764022658816,29.02115483,139.27,139.24,59.5]
[1764022659388,29.02115483,139.27,139.24,60.15]
[1764022659983,29.02115483,139.27,139.24,59.5]
[1764022659984,0.69,139.26,139.24,59.5]
[1764022661106,7.18132854,139.25,139.24,59.5]
[1764022662520,7.87132854,139.25,139.23,59.5]
[1764022662725,3.2,139.24,139.23,59.5]
[1764022663199,10.38184429,139.24,139.23,59.5]
[1764022663402,3.2,139.24,139.23,60.15]
[1764022673410,10.38184429,139.24,139.23,60.15]
[1764022676118,11.09184429,139.24,139.23,59.5]
[1764022676316,3.2,139.24,139.23,59.5]
[1764022676519,10.38184429,139.24,139.23,59.5]
[1764022677494,3.2,139.24,139.23,60.18]
[1764022686635,11.09184429,139.24,139.23,59.5]
[1764022687016,19.90178921,139.24,139.23,59.5]
[1764022688629,19.90178921,139.24,139.19,0.2]
[1764022688630,8.80994492,139.23,139.19,0.2]
[1764022688832,25.82880892,139.23,139.19,0.2]
[1764022689012,8.80994492,139.22,139.19,0.88]
[1764022689207,3.2,139.21,139.19,0.88]
[1764022689709,3.2,139.21,139.19,0.2]
[1764022690028,3.2,139.21,139.2,0.68]
[1764022691810,7.18197218,139.24,139.2,7.86390804]
[1764022692013,7.18132943,139.25,139.2,7.86390804]
[1764022692215,3.2,139.24,139.21,0.68]
[1764022692435,3.2,139.23,139.21,0.68]
[1764022693338,3.2,139.23,139.21,7.86330689]
[1764022693723,3.2,139.23,139.22,0.68]
[1764022699044,3.2,139.23,139.22,59.5]
[1764022700239,3.2,139.23,139.22,60.18]
[1764022702836,3.92,139.23,139.22,59.5]
[1764022703152,3.2,139.23,139.22,60.16]
[1764022703528,3.2,139.23,139.22,59.5]
[1764022704236,10.38236012,139.23,139.22,59.5]
[1764022704827,14.11242971,139.23,139.22,59.5]
[1764022705029,32.06641602,139.23,139.2,59.5]
[1764022705947,3.01006959,139.22,139.2,59.5]
[1764022707029,7.18339199,139.21,139.2,59.5]
[1764022707235,10.91346158,139.21,139.2,59.5]
[1764022707725,7.90339199,139.21,139.2,59.5]
[1764022707930,10.91346158,139.21,139.2,59.5]
[1764022708348,10.19346158,139.21,139.19,59.7]
[1764022708644,10.38390804,139.2,139.19,0.2]
[1764022711051,10.38390804,139.2,139.19,0.86]
[1764022711052,3.2,139.2,139.19,0.86]
[1764022712046,10.38390804,139.2,139.19,0.86]
[1764022712226,3.2,139.2,139.19,0.86]
[1764022714739,3.01006959,139.23,139.19,0.86]
[1764022714945,3.92,139.22,139.19,0.86]
[1764022716349,3.92,139.22,139.2,0.66]
[1764022716350,10.3828949,139.22,139.2,0.66]
[1764022716753,10.3828949,139.22,139.19,0.86]
[1764022717752,13.39296449,139.22,139.19,0.86]
[1764022717950,14.11296449,139.22,139.19,0.86]
[1764022721152,11.1028949,139.22,139.19,0.86]
[1764022721345,14.11296449,139.22,139.19,0.86]
[1764022722360,10.19352203,139.21,139.19,0.86]
[1764022722554,11.88879988,139.21,139.19,0.86]
[1764022722735,11.88879988,139.21,139.19,60.36]
[1764022723864,7.18345244,139.21,139.19,60.36]
[1764022725573,7.18345244,139.21,139.2,0.66]
[1764022725865,7.18345244,139.21,139.19,59.7]
[1764022726069,7.18345244,139.21,139.19,60.36]
[1764022726646,0.72,139.2,139.19,59.7]
[1764022726845,12.60879988,139.21,139.19,59.7]
[1764022727386,28.41759976,139.21,139.19,59.7]
[1764022727555,5.36534744,139.2,139.19,59.7]
[1764022728148,21.60527168,139.2,139.19,59.7]
[1764022728640,21.60527168,139.2,139.19,0.2]
[1764022728962,12.54879988,139.21,139.19,0.2]
[1764022729154,28.78917972,139.2,139.19,0.2]
[1764022731470,31.96917972,139.2,139.19,0.2]
[1764022733542,36.67452716,139.2,139.19,0.2]
[1764022735871,37.38452716,139.2,139.19,0.2]
[1764022736048,36.67452716,139.2,139.19,0.2]
[1764022737378,37.38452716,139.2,139.19,0.2]
[1764022737956,36.67452716,139.2,139.19,0.2]
[1764022738179,46.19447208,139.2,139.19,0.2]
[1764022739548,41.48912464,139.2,139.19,0.2]
[1764022739749,46.19447208,139.2,139.19,0.2]
[1764022741270,64.15424219,139.2,139.17,0.1]
[1764022741574,29.82415636,139.18,139.17,0.1]
[1764022741780,25.14367815,139.2,139.17,0.79]
[1764022742068,24.78994057,139.19,139.17,0.79]
[1764022742269,3.18,139.19,139.17,0.79]
[1764022743572,10.36442828,139.19,139.17,0.79]
[1764022746475,3.18,139.19,139.17,60.29]
[1764022746860,3.18,139.19,139.18,0.69]
[1764022748773,10.36442416,139.19,139.18,0.69]
[1764022751154,3.18,139.19,139.18,0.69]
[1764022751760,7.18409347,139.2,139.18,0.69]
[1764022752051,48.37438406,139.21,139.18,60.19]
[1764022752052,3.18,139.19,139.18,60.19]
[1764022760889,3.18,139.19,139.18,59.5]
[1764022761303,10.36442416,139.19,139.17,59.6]
[1764022761606,10.36442416,139.19,139.17,60.29]
[1764022761974,15.0697716,139.19,139.17,60.29]
[1764022764110,15.0697716,139.19,139.17,59.79]
[1764022768911,10.36442416,139.19,139.17,59.79]
[1764022769111,15.0697716,139.19,139.17,59.79]
[1764022769925,15.7797716,139.19,139.17,59.1]
[1764022770226,5.41534744,139.18,139.17,59.1]
[1764022770428,5.41534744,139.18,139.16,59.3]
[1764022770603,4.70534744,139.17,139.16,59.3]
[1764022772524,11.89080407,139.17,139.16,59.3]
[1764022772923,12.60080407,139.17,139.16,0.2]
[1764022773630,11.89080407,139.17,139.16,0.2]
[1764022773810,15.07080407,139.17,139.16,0.2]
[1764022774215,15.78080407,139.17,139.16,0.2]
[1764022775323,37.38918812,139.17,139.16,0.2]
[1764022784535,35.69802566,139.17,139.16,0.2]
[1764022785126,14.08964161,139.17,139.16,0.2]
[1764022785842,16.308864,139.14,139.12,0.2]
[1764022786040,7.18545663,139.17,139.13,0.68]
[1764022786245,6.19418498,139.16,139.13,0.68]
[1764022786451,3.18,139.16,139.13,0.68]
[1764022786958,10.36614336,139.16,139.13,0.68]
[1764022787421,7.18614336,139.16,139.13,0.68]
[1764022787622,3.18,139.15,139.13,0.68]
[1764022790729,13.38072162,139.15,139.13,0.68]
[1764022791127,13.38072162,139.15,139.13,59.78]
[1764022791327,3.01418498,139.14,139.13,59.78]
[1764022791547,3.01418498,139.14,139.13,59.1]
[1764022792124,3.01418498,139.14,139.13,59.77]
[1764022793347,13.38072162,139.15,139.13,59.77]
[1764022793528,13.38072162,139.15,139.14,0.7]
[1764022794342,10.36653664,139.15,139.14,0.7]
[1764022797048,10.36653664,139.15,139.14,59.8]
[1764022805260,3.18,139.15,139.14,59.8]
[1764022810134,10.36648939,139.15,139.14,59.8]
[1764022812452,13.38067437,139.15,139.14,59.8]
[1764022812658,3.18,139.15,139.14,59.8]
[1764022814739,3.18,139.15,139.14,0.7]
[1764022815069,7.18455555,139.19,139.14,7.88700589]
[1764022815362,3.18,139.18,139.14,66.98700589]
[1764022815537,3.18,139.17,139.15,0.7]
[1764022816158,7.18404476,139.2,139.15,3.71418498]
[1764022816159,3.18,139.16,139.15,3.71418498]
[1764022816969,3.18,139.16,139.15,10.90067437]
[1764022817170,3.18,139.16,139.15,7.88648939]
[1764022819281,3.18,139.16,139.15,87.96689786]
[1764022820286,3.18,139.16,139.15,84.95271288]
[1764022821210,34.26368186,139.24,139.15,87.96689786]
[1764022821211,0.7,139.22,139.15,87.96689786]
[1764022821485,6.19418498,139.21,139.16,0.7]
[1764022821653,0.7,139.2,139.15,66.28648939]
[1764022821855,3.88,139.21,139.16,0.7]
[1764022822174,3.01418498,139.19,139.16,0.7]
[1764022822349,3.01418498,139.2,139.16,0.7]
[1764022822559,3.71418498,139.2,139.16,0.7]
[1764022822975,7.18398926,139.2,139.16,7.88592468]
[1764022823178,10.19817424,139.2,139.16,7.88592468]
[1764022823376,10.19817424,139.2,139.17,0.67]
[1764022823573,10.89817424,139.2,139.17,0.67]
[1764022823779,3.01418498,139.19,139.17,0.67]
[1764022824574,3.71418498,139.19,139.16,0.67]
[1764022824971,10.89872381,139.19,139.16,0.67]
[1764022825392,10.19872381,139.19,139.16,0.67]
[1764022826594,10.19829994,139.2,139.16,7.85591293]
[1764022827094,10.19829994,139.2,139.17,0.67]
[1764022829095,3.01418498,139.19,139.17,0.67]
[1764022829384,3.18,139.18,139.17,0.67]
[1764022829972,7.18289034,139.22,139.17,66.95543845]
[1764022830173,3.01418498,139.19,139.17,59.77]
[1764022830377,6.19418498,139.18,139.17,59.1]
[1764022830781,6.89418498,139.18,139.14,66.95671164]
[1764022830980,3.01418498,139.17,139.15,0.67]
[1764022831181,3.01418498,139.16,139.15,0.67]
[1764022831381,3.01418498,139.16,139.14,59.77]
[1764022831575,3.18,139.15,139.14,59.77]
[1764022831780,6.19418498,139.15,139.14,0.67]
[1764022831981,3.18,139.15,139.14,0.67]
[1764022832182,6.19418498,139.15,139.13,0.67]
[1764022834907,13.38080564,139.15,139.13,0.67]
[1764022835108,3.01418498,139.14,139.12,0.2]
[1764022835401,13.38080564,139.15,139.13,0.67]
[1764022836001,13.38080564,139.15,139.12,0.2]
[1764022836221,14.08080564,139.15,139.12,0.87]
[1764022836405,13.38080564,139.15,139.12,0.87]
[1764022836606,13.38080564,139.15,139.12,0.2]
[1764022836789,13.38080564,139.15,139.13,0.67]
[1764022838486,13.38080564,139.15,139.12,0.2]
[1764022838702,14.08080564,139.15,139.12,0.87]
[1764022839199,13.38080564,139.15,139.13,0.67]
[1764022840179,14.08080564,139.15,139.13,0.67]
[1764022840380,13.38080564,139.15,139.13,0.67]
[1764022841705,3.18,139.14,139.13,0.67]
[1764022844302,3.01418498,139.17,139.13,7.85752246]
[1764022844495,3.18,139.16,139.13,66.95752246]
[1764022844802,3.18,139.16,139.14,0.67]
[1764022845988,3.18,139.16,139.14,7.85656908]
[1764022846205,3.18,139.16,139.15,0.67]
[1764022847601,3.18,139.16,139.15,66.95648939]
[1764022852313,3.18,139.16,139.15,59.1]
[1764022852610,7.8875529,139.16,139.15,59.1]
[1764022852989,3.18,139.16,139.15,59.1]
[1764022856217,3.18,139.16,139.15,59.76]
[1764022856405,3.18,139.16,139.15,66.94648939]
[1764022857920,3.18,139.16,139.15,59.76]
[1764022860204,3.18,139.16,139.15,66.94648939]
[1764022861029,3.18,139.16,139.15,59.76]
[1764022862843,3.18,139.16,139.15,66.94648939]
[1764022863833,7.18459932,139.19,139.15,66.94648939]
[1764022864034,3.18,139.18,139.16,0.66]
[1764022867552,3.18,139.18,139.16,7.84589828]
[1764022868228,3.18,139.18,139.16,66.94589828]
[1764022868631,3.18,139.18,139.17,0.66]
[1764022869950,3.18,139.18,139.17,66.94545663]
[1764022872959,4.7075529,139.21,139.17,66.94545663]
[1764022873257,3.18,139.2,139.18,0.66]
[1764022873443,3.18,139.2,139.18,66.94462452]
[1764022873842,3.18,139.2,139.19,0.66]
[1764022874442,3.18,139.2,139.18,66.94462452]
[1764022874640,4.7075529,139.21,139.18,66.94462452]
[1764022874848,0.2,139.3,139.27,16.308864]
[1764022875044,0.2,139.3,139.24,1.99999999]
[1764022875244,4.7075529,139.28,139.26,16.308864]
[1764022875453,1.9,139.27,139.26,23.48967686]
[1764022875838,7.2975529,139.27,139.25,2.87862977]
[1764022876042,0.69,139.26,139.25,10.05990905]
[1764022876245,1.9,139.27,139.25,14.76746195]
[1764022876444,1.9,139.27,139.26,4.7075529]
[1764022876647,1.9,139.27,139.25,14.76746195]
[1764022877336,1.9,139.27,139.26,4.7075529]
[1764022877662,1.9,139.27,139.26,28.19722976]
[1764022879946,1.9,139.27,139.26,23.48967686]
[1764022880470,2.59,139.27,139.25,10.05985806]
[1764022881266,0.69,139.26,139.25,10.05985806]
[1764022884651,1.9,139.27,139.25,10.05985806]
[1764022884855,2.57,139.27,139.25,10.05985806]
[1764022885061,2.57,139.27,139.25,7.18122829]
[1764022885265,2.57,139.27,139.26,4.7075529]
[1764022885583,2.57,139.27,139.25,7.18122829]
[1764022887771,2.57,139.27,139.25,4.7075529]
[1764022888871,0.67,139.26,139.25,7.18109241]
[1764022889666,0.67,139.26,139.24,11.88921753]
[1764022890063,0.67,139.26,139.23,7.18225215]
[1764022890268,0.67,139.26,139.23,74.38980505]
[1764022890773,0.67,139.26,139.23,62.5]
[1764022890980,4.7075529,139.24,139.2,7.1837582]
[1764022891372,0.67,139.23,139.2,11.8913111]
[1764022892777,0.67,139.25,139.22,4.7075529]
[1764022892960,0.67,139.25,139.23,7.18236012]
[1764022895169,0.2,139.3,139.23,41.44712442]
[1764022895475,3.87,139.29,139.25,4.7075529]
[1764022895883,0.67,139.28,139.25,4.7075529]
[1764022896473,0.67,139.28,139.26,7.18081286]
[1764022897150,0.67,139.28,139.26,11.88836576]
[1764022900874,0.67,139.28,139.26,74.38836576]
[1764022903990,0.67,139.28,139.26,62.5]
[1764022904682,0.67,139.28,139.26,67.2075529]
[1764022905169,0.67,139.28,139.26,74.38816423]
[1764022905369,0.67,139.28,139.26,69.68061133]
[1764022905571,0.67,139.28,139.26,74.38816423]
[1764022906673,0.67,139.28,139.26,72.68811143]
[1764022912392,0.67,139.28,139.26,65.5075001]
[1764022912571,0.67,139.28,139.26,62.5]
[1764022913905,0.67,139.28,139.21,8.80994492]
[1764022913906,3.0075001,139.27,139.2,7.18390804]
[1764022914064,3.0075001,139.25,139.2,10.19140814]
[1764022914271,3.2,139.24,139.2,10.19140814]
[1764022914785,0.69,139.23,139.2,10.88140814]
[1764022915393,0.69,139.23,139.2,28.84117825]
[1764022916577,3.2,139.24,139.2,28.84117825]
[1764022916778,3.89,139.24,139.2,28.84117825]
[1764022917496,3.2,139.24,139.2,28.84117825]
[1764022917672,3.89,139.24,139.2,28.84117825]
[1764022918299,0.69,139.23,139.2,28.84117825]
[1764022918981,0.69,139.23,139.2,25.14367815]
[1764022919177,0.69,139.23,139.2,7.18390804]
[1764022920297,3.6975001,139.23,139.19,68.96428247]
[1764022920778,3.6975001,139.22,139.19,61.78]
[1764022921095,3.6975001,139.22,139.18,7.18476663]
[1764022921271,0.69,139.21,139.18,7.18476663]
[1764022921469,3.18,139.2,139.18,7.18476663]
[1764022922371,3.18,139.2,139.19,0.69]
[1764022922600,3.18,139.2,139.18,7.18476663]
[1764022922824,3.18,139.2,139.19,3.6975001]
[1764022922978,3.18,139.2,139.19,10.88192426]
[1764022923174,3.18,139.2,139.19,10.19192426]
[1764022924715,26.76129364,139.27,139.19,90.62298468]
[1764022924716,0.69,139.24,139.19,90.62298468]
[1764022924873,3.18,139.23,139.19,90.62298468]
[1764022925073,3.18,139.23,139.21,3.0075001]
[1764022925284,3.87,139.23,139.21,3.0075001]
[1764022926474,3.87,139.23,139.22,7.18287602]
[1764022926675,3.87,139.23,139.22,68.96287602]
[1764022927299,3.87,139.23,139.22,61.78]
[1764022927880,3.87,139.23,139.21,10.19068168]
[1764022929579,3.87,139.23,139.21,7.18318158]
[1764022932302,3.18,139.23,139.21,7.87318158]
[1764022932905,3.18,139.23,139.21,7.18318158]
[1764022933082,3.87,139.23,139.21,7.18318158]
[1764022935781,3.18,139.23,139.22,0.69]
[1764022935984,3.18,139.23,139.21,10.88068168]
[1764022937107,3.18,139.23,139.21,10.19068168]
[1764022937309,3.18,139.23,139.21,10.88068168]
[1764022938717,0.69,139.25,139.21,28.83916167]
[1764022938925,3.18,139.24,139.21,28.83916167]
[1764022939225,3.18,139.24,139.22,0.69]
[1764022940022,3.18,139.24,139.23,7.18236012]
[1764022940722,3.87,139.24,139.21,25.83150677]
[1764022941522,3.18,139.24,139.22,0.69]
[1764022942108,3.18,139.24,139.23,7.18236012]
[1764022948918,3.84,139.24,139.22,7.18287602]
[1764022950036,3.6675001,139.23,139.22,62.5]
[1764022951129,0.66,139.23,139.22,62.5]
[1764022952512,3.6675001,139.23,139.22,62.5]
[1764022952810,0.66,139.23,139.22,62.5]
[1764022955636,0.66,139.23,139.22,69.68287602]
[1764022959140,0.66,139.23,139.22,62.5]
[1764022966446,0.66,139.23,139.22,69.68287602]
[1764022971252,0.66,139.23,139.22,62.5]
[1764022974656,3.84,139.23,139.22,62.5]
[1764022975042,3.84,139.23,139.22,69.68287602]
[1764022985467,3.84,139.23,139.22,62.5]
[1764022985658,15.72517725,139.23,139.19,62.5]
[1764022985864,4.70281713,139.21,139.19,62.5]
[1764022986168,4.70281713,139.21,139.17,7.18545663]
[1764022986387,0.65,139.2,139.17,7.18545663]
[1764022986591,3.18,139.19,139.17,69.68545663]
[1764022987180,3.18,139.19,139.17,70.34545663]
[1764022990395,3.83,139.19,139.17,70.34545663]
[1764022990581,3.18,139.19,139.17,69.68545663]
[1764022990780,3.83,139.19,139.17,69.68545663]
[1764022991380,3.83,139.19,139.17,70.34545663]
[1764022991696,3.18,139.19,139.17,70.34545663]
[1764022995585,3.83,139.19,139.17,70.34545663]
[1764022995787,3.18,139.19,139.17,69.68545663]
[1764022995991,3.83,139.19,139.17,69.68545663]
[1764022997899,0.65,139.18,139.17,69.68545663]
[1764022998094,3.83,139.19,139.17,69.68545663]
[1764022998480,3.18,139.19,139.17,69.68545663]
[1764022998679,0.65,139.18,139.17,69.68545663]
[1764022998901,3.18,139.19,139.17,70.34545663]
[1764022999094,3.83,139.19,139.17,69.68545663]
[1764023000779,7.1821897,139.24,139.18,5.36281713]
[1764023000980,3.83,139.23,139.19,12.54724129]
[1764023001290,3.83,139.23,139.2,4.70281713]
[1764023001291,3.18,139.23,139.2,4.70281713]
[1764023001606,3.83,139.23,139.2,5.36281713]
[1764023001990,3.18,139.23,139.21,0.66]
[1764023002707,3.9,139.23,139.21,7.18339199]
[1764023003593,3.18,139.23,139.21,7.86339199]
[1764023004001,3.9,139.23,139.21,7.18339199]
[1764023005206,3.18,139.23,139.21,7.86339199]
[1764023006982,3.9,139.23,139.21,7.18339199]
[1764023007825,3.9,139.23,139.21,69.68339199]
[1764023009825,3.18,139.23,139.21,69.68339199]
[1764023010026,3.18,139.23,139.21,70.36339199]
[1764023010423,3.9,139.23,139.21,70.36339199]
[1764023010723,3.9,139.23,139.21,69.68339199]
[1764023010920,3.18,139.23,139.21,74.38620912]
[1764023011099,3.18,139.23,139.22,0.68]
[1764023011509,3.18,139.23,139.21,70.36339199]
[1764023012009,3.18,139.23,139.21,75.06620912]
[1764023012593,3.9,139.23,139.21,69.68339199]
[1764023012920,3.9,139.23,139.21,74.38620912]
[1764023013923,3.9,139.23,139.21,69.68339199]
[1764023014504,3.18,139.23,139.21,74.38620912]